Cogmind - Beta 16 @@@ ROGUE MODE // 2025.11.07 @ 14:13:31 Player: dp-fld Result: Destroyed by Striker with Compact Linear Accelerator Performance ------------- Evolutions (9) 4500 Regions Visited (28) 5600 Robots Destroyed (260) 1300 Value Destroyed (9598) 9598 Prototype IDs (143) 2860 Alien Tech Used (3) 600 Bonus (6384) 6384 TOTAL SCORE: 30842 Bonus ------- High Alert Combat Kills 1528 Follower Combat Kills 527 Registered with UFD 300 Met Optimus in HQ 500 Met Zhirov 300 Met Warlord at Base 500 MAIN.C Attacked Warlord 500 Used Core Reset Matrix 3000 Friendly Fire -771 Cogmind --------- Core Integrity 0/1600 Matter 290/300 Energy 98/100 System Corruption 11% Temperature Cool (0) Movement Core (50) Location -1/Command Parts ------- > --- POWER (1) -------- (None) > --- PROPULSION (5) --- (None) > --- UTILITY (17) ----- Enhanced Optical Array Experimental Signal Interpreter Advanced Launcher Guidance Computer Advanced Launcher Guidance Computer Advanced Launcher Guidance Computer A0-MCA's Component Scanner > --- WEAPON (3) ------- (None) > --- INVENTORY (5) ---- Particle Reactor Myomer Leg Advanced Drone Bay (2/2) Enhanced Quantum Rifle Peak State ------------ > --- POWER ------------ Light Quantum Reactor > --- PROPULSION ------- Improved VSS Leg Heavy Shield Leg Heavy Shield Leg > --- UTILITY ---------- Advanced Heat Sink Advanced Heat Sink Advanced Heat Sink Concept Chromion Battery Enhanced Optical Array Advanced Sensor Array Experimental Signal Interpreter Advanced Launcher Guidance Computer Advanced Launcher Guidance Computer Advanced Launcher Guidance Computer Advanced Reaction Control System Experimental Cloaking Device Advanced Shield Generator Advanced Point Defense System A0-MCA's Component Scanner Advanced Drone Bay > --- WEAPON ----------- Nova Cannon Enhanced Nova Cannon Micro-nuke Launcher > --- INVENTORY -------- Particle Reactor Improved VSS Leg Nova Cannon Micro-nuke Launcher Micro-nuke Launcher [Rating: 196] Favorites ----------- Power Light Nuclear Core Engine Cooled Ion Engine Power Core Light Nuclear Core Reactor Mini Fusion Reactor Propulsion Light Treads Treads Light Treads Leg Heavy Shield Leg Wheel Compact Wheel Hover Unit Improved Antigrav System Flight Unit Improved VTOL Module Utility High-capacity Storage Unit Device Improved Heat Sink Storage High-capacity Storage Unit Processor Experimental Signal Interpreter Hackware Advanced Hacking Suite Protection Improved Light Armor Plating Weapon Advanced Beam Cannon Energy Gun Pulse Rifle Energy Cannon Advanced Beam Cannon Ballistic Gun Makeshift Shrapnel Gun Ballistic Cannon Light Cannon Launcher Mini Grenade Launcher Special Weapon LU-1G1's Laser Shovel Impact Weapon Flail Slashing Weapon Katana Piercing Weapon Heavy Pick Special Melee Weapon Advanced Datajack Build | -11 -10 -10 -9 -9 -9 -8 -8 -8 -8 -8 -6 -5 -5 -5 -5 -4 -4 -4 -4 -4 -3 -3 -3 -2 -2 -2 -1 -1 ------- Run | Yrd Mat Min Mat Min Exi Min Mat Sto Rec Scr Fac Fac Upp Upp Zhi Pro Fac Upp Upp War Pro Res Tes Res Qua Frg Acc Com Slots Evolved 18 | . . . 2 . . . 2 . . . 4 2 . . . . 2 . . . . 2 . 2 . . 2 . Power . | . . . . . . . . . . . . . . . . . . . . . . . . . . . . . Propulsion 3 | . . . 1 . . . 1 . . . . 1 . . . . . . . . . . . . . . . . Utility 15 | . . . 1 . . . 1 . . . 4 1 . . . . 2 . . . . 2 . 2 . . 2 . Weapon . | . . . . . . . . . . . . . . . . . . . . . . . . . . . . . Parts Attached 219 | 1 20 6 26 1 1 2 34 18 . 5 17 3 . . 4 1 10 . . 7 3 3 . 8 1 . 8 40 Power 18 | . 2 2 3 . . . 2 2 . . 1 1 . . 1 . . . . . 1 . . . . . 1 2 Engine 9 | . 2 2 3 . . . 1 1 . . . . . . . . . . . . . . . . . . . . Core 4 | . . . . . . . 1 1 . . 1 1 . . . . . . . . . . . . . . . . Reactor 5 | . . . . . . . . . . . . . . . 1 . . . . . 1 . . . . . 1 2 Propulsion 65 | . 3 . 11 . . 1 13 9 . 2 4 1 . . . . 1 . . 2 1 1 . 1 . . 1 14 Treads 37 | . 3 . 10 . . 1 12 9 . 2 . . . . . . . . . . . . . . . . . . Leg 8 | . . . . . . . . . . . . . . . . . . . . . . . . . . . . 8 Wheel 2 | . . . . . . . . . . . . . . . . . . . . . . . . . . . 1 1 Hover 2 | . . . . . . . . . . . . . . . . . . . . . . . . . . . . 2 Flight 16 | . . . 1 . . . 1 . . . 4 1 . . . . 1 . . 2 1 1 . 1 . . . 3 Utility 87 | 1 3 1 4 . 1 1 7 6 . 1 12 1 . . 3 1 7 . . 5 1 2 . 6 1 . 6 17 Device 36 | 1 1 . 1 . . 1 2 2 . . 3 . . . 2 1 3 . . 2 1 2 . 1 1 . 2 10 Storage 8 | . 2 . 1 . 1 . 2 . . . . . . . . . 1 . . . . . . . . . 1 . Processor 12 | . . . . . . . 1 . . . 5 . . . . . . . . 1 . . . . . . . 5 Hackware 15 | . . . . . . . . . . . 2 1 . . 1 . 2 . . 1 . . . 5 . . 3 . Protection 16 | . . 1 2 . . . 2 4 . 1 2 . . . . . 1 . . 1 . . . . . . . 2 Artifact . | . . . . . . . . . . . . . . . . . . . . . . . . . . . . . Weapon 49 | . 12 3 8 1 . . 12 1 . 2 . . . . . . 2 . . . . . . 1 . . . 7 Energy Gun 4 | . 2 . 1 . . . 1 . . . . . . . . . . . . . . . . . . . . . Energy Cannon 12 | . 3 . . . . . 5 1 . . . . . . . . . . . . . . . . . . . 3 Ballistic Gun 14 | . 5 1 2 . . . 4 . . 1 . . . . . . . . . . . . . . . . . 1 Ballistic Cannon 3 | . 1 . 1 1 . . . . . . . . . . . . . . . . . . . . . . . . Launcher 8 | . . 2 2 . . . 1 . . . . . . . . . . . . . . . . . . . . 3 Special Weapon 1 | . . . . . . . . . . 1 . . . . . . . . . . . . . . . . . . Impact Weapon 4 | . 1 . 2 . . . . . . . . . . . . . 1 . . . . . . . . . . . Slashing Weapon 1 | . . . . . . . 1 . . . . . . . . . . . . . . . . . . . . . Piercing Weapon 1 | . . . . . . . . . . . . . . . . . . . . . . . . 1 . . . . Special Melee Weapon 1 | . . . . . . . . . . . . . . . . . 1 . . . . . . . . . . . Unidentified Prototypes 14 | . . . 3 . . . 3 . . 1 1 . . . 3 . . . 1 1 . . . . . . 1 . Parts Lost 56 | . 1 2 3 . . 1 4 1 . 1 . . . . . . 3 1 . . . . . 2 . 1 14 22 Power 3 | . . 1 . . . . . . . . . . . . . . . . . . . . . . . . 1 1 Propulsion 18 | . 1 . 3 . . 1 2 1 . . . . . . . . . 1 . . . . . . . . 5 4 Utility 24 | . . 1 . . . . 1 . . . . . . . . . 2 . . . . . . 1 . 1 8 10 Weapon 11 | . . . . . . . 1 . . 1 . . . . . . 1 . . . . . . 1 . . . 7 Highest Loss Streak 18 | . 1 1 1 . . 1 2 1 . 1 . . . . . . 2 1 . . . . . 1 . 1 10 18 To Critical Strikes 1 | . 1 . . . . . . . . . . . . . . . . . . . . . . . . . . . Average Backups 14 | 6 13 14 17 20 19 19 19 19 19 19 5 4 5 5 4 5 8 9 9 9 10 9 10 9 10 9 7 4 Power 1 | 1 . 1 1 2 2 2 2 2 2 1 . . . . . . . 1 1 1 1 1 1 1 1 1 1 . Propulsion 4 | 4 1 1 6 7 6 6 6 7 8 7 2 1 1 1 1 1 . . . . 1 1 1 1 1 1 . . Utility 4 | . 2 3 2 2 2 3 4 6 5 6 1 2 3 3 2 3 5 6 6 7 7 6 6 5 4 3 2 1 Weapon 4 | 1 8 7 6 7 7 7 5 3 4 3 1 1 1 1 1 1 1 1 1 . . . . 1 2 2 2 2 Tool/Special . | . . . . . . . . . . . . . . . . . . . . . . . . . . . . . Unused Backups 86 | . 14 5 9 . 1 2 11 8 . 6 3 . . . 1 . 5 1 . 4 1 1 1 1 . 1 4 7 Power 13 | . 1 1 2 . 1 1 1 3 . 1 . . . . . . 1 . . . . . . . . . 1 . Propulsion 13 | . 5 . 1 . . . . 4 . 2 . . . . . . . . . . . . . . . . . 1 Utility 36 | . 2 4 6 . . . 5 . . 2 3 . . . 1 . 3 1 . 2 1 1 1 . . 1 1 2 Weapon 22 | . 6 . . . . . 5 1 . 1 . . . . . . 1 . . 2 . . . 1 . . 1 4 Tool/Special 2 | . . . . . . 1 . . . . . . . . . . . . . . . . . . . . 1 . Average Slot Usage (%) 96 | . 99 99 99 100 80 99 99 99 100 100 99 99 100 100 98 100 96 100 99 100 100 99 100 96 93 94 79 77 Engine 5 | . 14 13 11 11 11 11 6 8 . . . . . . . . . . . . . . . . . . . . Core 2 | . . . . . . . 2 . 9 9 6 5 5 5 5 5 5 5 5 5 4 . . . . . . . Treads 22 | . 25 28 32 33 33 32 35 36 36 36 . . . . . . . . . . . . . . . . . . Flight 6 | . . . . . . . . . . . 25 29 29 29 29 29 26 26 25 25 25 22 22 20 20 20 15 2 Device 11 | . 14 8 10 11 11 11 9 9 9 9 12 11 11 11 12 11 18 15 15 13 10 17 18 16 16 16 16 16 Storage 8 | . 14 14 11 11 11 11 12 9 9 9 . . . . . . 3 5 5 5 5 4 4 4 4 4 5 2 Processor 8 | . . . . . . . 5 9 9 9 24 17 17 17 17 17 15 15 15 16 20 18 18 16 16 16 15 24 Hackware 4 | . . . . . . . . . . . 6 16 17 17 17 17 12 15 15 15 15 13 13 19 20 19 16 6 Protection 6 | . . 5 11 11 11 11 9 9 9 9 5 5 5 5 3 5 5 5 5 4 5 4 4 3 4 4 . 1 Energy Cannon 5 | . 3 . . . . 2 8 16 18 15 . . . . . . . . . . . . . . . . . 2 Ballistic Gun 4 | . 15 7 3 11 1 8 4 . . 1 5 5 5 5 5 5 1 . . . . . . . . . . . Ballistic Cannon 3 | . 4 8 14 11 1 11 2 . . . . . . . . . . . . . . . . . . . . . Launcher 1 | . . 4 . . . . . . . . . . . . . . . 5 5 5 5 4 4 3 2 4 . 4 Impact Weapon 1 | . . 7 2 . . . . . . . . . . . . . 3 5 5 5 5 4 4 4 4 3 2 1 Peak Build Rating 196 | 7 11 17 23 23 23 23 32 37 37 43 73 82 82 82 90 86 98 86 92 115 121 143 142 155 156 157 173 196 Average Rating 55 | 6 8 13 16 21 17 22 28 32 37 37 69 80 82 82 85 85 90 85 89 96 114 139 142 151 152 154 144 160 On Entrance 71 | 6 7 9 12 21 23 22 23 27 37 37 41 70 82 82 82 84 86 88 85 92 106 121 142 142 153 154 157 77 Avg Prop Armor Cover (%) 3 | . . . . . . . . . . 5 6 1 1 1 1 . . . . . . . . . . . 6 7 Naked Turns . | . . . . . . . . . . . . . . . . . . . . . . . . . . . . . Heaviest Build 92 | 11 32 37 61 60 60 62 65 60 58 59 56 15 15 15 16 15 25 23 24 24 27 33 33 35 32 33 34 92 Greatest Support 135 | 20 40 40 60 60 60 60 80 80 80 80 60 25 20 20 25 25 25 25 25 29 31 33 33 34 40 40 40 135 Greatest Overweight (x) 1 | . . . 1 . . 1 1 . . . . . . . . . 1 . . . . . . 1 . . . 1 Average Overweight (x) . | . . . . . . . . . . . . . . . . . . . . . . . . . . . . . Largest Inventory Capacity 20 | 8 15 15 20 20 20 20 20 20 20 20 20 5 5 5 5 5 10 10 10 10 10 10 10 10 10 10 10 5 Average Capacity 15 | 8 14 15 17 20 20 20 20 20 20 20 5 5 5 5 5 5 8 10 10 10 10 10 10 10 10 10 8 5 Most Carried 20 | 7 15 15 20 20 20 20 20 20 20 20 20 5 5 5 5 5 10 10 10 10 10 10 10 10 10 10 10 5 Average Carried 14 | 6 13 14 17 20 19 19 19 19 20 19 5 4 5 5 4 5 8 9 9 9 9 9 9 9 9 9 7 4 Final Capacity 20 | 8 15 15 20 20 20 20 20 20 20 20 5 5 5 5 5 5 10 10 10 10 10 10 10 10 10 10 5 5 Final Carried 20 | 7 15 15 20 20 20 19 20 20 20 20 5 5 5 5 5 5 10 9 10 10 10 10 10 10 10 9 5 5 Class Distribution -------------------- 36% | Mutant 30% | Scavenger-Mutant 10% | Hacker-Scout 6% | Hacker-Ninja 5% | Wizard-Ninja 3% | Scavenger-Scout Dominant Class ---------------- Mutant | -10/Materials Mutant | -10/Mines Scavenger-Mutant | -9/Materials Mutant | -9/Mines Scavenger-Mutant | -9/Exiles Scavenger-Mutant | -8/Mines Scavenger-Mutant | -8/Materials Mutant | -8/Storage Mutant | -8/Recycling Mutant | -8/Scraptown Scavenger-Scout | -6/Factory Hacker-Scout | -5/Factory Hacker-Scout | -5/Upper Caves Hacker-Scout | -5/Upper Caves Hacker-Scout | -5/Zhirov Hacker-Scout | -4/Proximity Caves Hacker-Ninja | -4/Factory Hacker-Scout | -4/Upper Caves Hacker-Scout | -4/Upper Caves Hacker-Scout | -4/Warlord Hacker-Scout | -3/Proximity Caves Hacker-Ninja | -3/Research Hacker-Ninja | -3/Testing Wizard-Ninja | -2/Research Wizard-Ninja | -2/Quarantine Wizard-Ninja | -2/Protoforge Hacker-Ninja | -1/Access Alien-Gunner | -1/Command Resources | -11 -10 -10 -9 -9 -9 -8 -8 -8 -8 -8 -6 -5 -5 -5 -5 -4 -4 -4 -4 -4 -3 -3 -3 -2 -2 -2 -1 -1 ----------- Run | Yrd Mat Min Mat Min Exi Min Mat Sto Rec Scr Fac Fac Upp Upp Zhi Pro Fac Upp Upp War Pro Res Tes Res Qua Frg Acc Com Matter Collected 6509 | 220 363 342 1133 138 . 193 781 281 . 272 175 99 . . . 104 205 70 49 206 60 . . 162 103 129 113 1311 Remotely . | . . . . . . . . . . . . . . . . . . . . . . . . . . . . . Salvage Created 10223 | 108 573 161 1309 176 . 306 2126 1234 . 903 . . . . . . 238 . 18 . 91 . 28 145 103 129 227 2348 Parts 443 | 4 34 4 77 15 . 19 96 69 . 45 . . . . . . . . . . 3 . 3 3 3 . 10 58 Haulers Intercepted 15 | . 2 . 6 . . . 4 2 . . . . . . . . . . . . . . . 1 . . . . Recyclers Shooed 8 | . . . 1 . . . 2 . . . . . . . . . . . . . . . . . . . 1 4 Parts Field Recycled . | . . . . . . . . . . . . . . . . . . . . . . . . . . . . . Retrieved Matter . | . . . . . . . . . . . . . . . . . . . . . . . . . . . . . Parts Self-Destructed 4 | . . . . . . . . . . . . . . . . . . . . . 4 . . . . . . . Prevented . | . . . . . . . . . . . . . . . . . . . . . . . . . . . . . Parts Restored . | . . . . . . . . . . . . . . . . . . . . . . . . . . . . . Kills | -11 -10 -10 -9 -9 -9 -8 -8 -8 -8 -8 -6 -5 -5 -5 -5 -4 -4 -4 -4 -4 -3 -3 -3 -2 -2 -2 -1 -1 ------- Run | Yrd Mat Min Mat Min Exi Min Mat Sto Rec Scr Fac Fac Upp Upp Zhi Pro Fac Upp Upp War Pro Res Tes Res Qua Frg Acc Com Combat Hostiles Destroyed 187 | . 13 5 34 8 . 10 36 24 . 14 . . . . . . . 1 . . 1 . . . . . 3 38 Melee 3 | . . 3 . . . . . . . . . . . . . . . . . . . . . . . . . . Guns 41 | . 6 1 3 7 . 6 15 . . 3 . . . . . . . . . . . . . . . . . . Cannons 88 | . 6 . 22 1 . 2 17 22 . 11 . . . . . . . . . . . . . . . . . 7 AOE 47 | . 1 1 9 . . 1 . 1 . . . . . . . . . 1 . . 1 . . . . . 3 29 Classes Destroyed 24 | 2 5 1 3 1 . 1 1 . . 4 . . . . . . 1 . 1 . 1 . . . . . 1 2 Worker 13 | . 1 . 1 . . . 2 . . . . . . . . . 2 . . . . . . 1 1 . . 5 Builder 4 | . . . 2 . . . . . . . . . . . . . . . . . . . . . 1 . 1 . Tunneler 2 | 1 . . . . . . . . . . . . . . . . 1 . . . . . . . . . . . Hauler 15 | . 2 . 6 . . . 4 2 . . . . . . . . . . . . . . . 1 . . . . Recycler 17 | 1 . 2 1 . . . 3 . . . . . . . . . . . . . . . . . . . 1 9 Minesweeper 1 | . . . . . . . . . . . . . . . . . . . 1 . . . . . . . . . Mechanic 3 | . . . 1 . . . . . . . . . . . . . . . . . . . . . . . . 2 Operator 8 | . 2 . . . . . 3 1 . . . . . . . . 1 . . . . . . . . . . 1 Drone 1 | . . . . . . . . . . . . . . . . . . . . . 1 . . . . . . . Watcher 15 | . . . . . . . . . . . . . . . . . 5 . . . . . 1 2 2 3 . 2 Swarmer 39 | . 3 . 10 3 . 3 2 3 . . . . . . . . . 1 . . . . . . . . . 14 Cutter 4 | . . . . . . . . . . . . . . . . . . . . . . . . . . . 3 1 Grunt 76 | . 10 . 18 4 . 5 21 10 . . . . . . . . . . . . . . . . . . . 8 Brawler 4 | . . . . . . . 2 . . . . . . . . . . . . . . . . . . . . 2 Duelist 4 | . . . . 1 . . 1 . . . . . . . . . . . . . . . . . . . . 2 Protector 1 | . . . . . . . . . . . . . . . . . . . . . . . . . . . . 1 Sentry 28 | . . . 6 . . . 9 10 . . . . . . . . . . . . . . . . . . . 3 Hunter 6 | . . . . . . 2 1 1 . . . . . . . . . . . . . . . . . . . 2 Programmer 5 | . . . . . . . . . . . . . . . . . . . . . . . . . . . . 5 Federalist 1 | . . . . . . . . . . 1 . . . . . . . . . . . . . . . . . . Explorer 1 | . . . . . . . . . . 1 . . . . . . . . . . . . . . . . . . Ranger 1 | . . . . . . . . . . 1 . . . . . . . . . . . . . . . . . . Scrapper 10 | . . . . . . . . . . 10 . . . . . . . . . . . . . . . . . . Assembled 10 | . . 5 . . . . . . . . . . . . . . . . . . . . . . . . . 5 Thug 1 | . . . . . . . . . . 1 . . . . . . . . . . . . . . . . . . Best Kill Streak 11 | 2 4 2 6 3 . 3 4 4 . 3 . . . . . . 1 1 1 . 1 . 1 2 3 1 4 11 Combat Bots Only 9 | . 4 2 3 3 . 3 3 4 . 3 . . . . . . . 1 . . 1 . . . . . 3 9 Max Kills in Single Turn 4 | 1 2 1 2 1 . 2 2 1 . 1 . . . . . . 1 1 1 . 1 . 1 1 1 1 2 4 Gunslinging . | . . . . . . . . . . . . . . . . . . . . . . . . . . . . . Exploded 3 | . 1 1 2 . . 1 . 1 . . . . . . . . . 1 . . 1 . . . . . 2 3 Melee 1 | . . 1 . . . . . . . . . . . . . . . . . . . . . . . . . . Uniques/NPCs Destroyed . | . . . . . . . . . . . . . . . . . . . . . . . . . . . . . Combat | -11 -10 -10 -9 -9 -9 -8 -8 -8 -8 -8 -6 -5 -5 -5 -5 -4 -4 -4 -4 -4 -3 -3 -3 -2 -2 -2 -1 -1 -------- Run | Yrd Mat Min Mat Min Exi Min Mat Sto Rec Scr Fac Fac Upp Upp Zhi Pro Fac Upp Upp War Pro Res Tes Res Qua Frg Acc Com Hostile Shots Fired 1261 | . 72 23 135 25 . 29 215 87 . 81 14 11 . . . 4 32 13 1 4 . 4 . 26 8 5 97 375 Missed 477 | . 20 5 50 8 . 7 68 25 . 19 6 7 . . . . 15 9 1 2 . 3 . 12 7 3 47 163 Hits 784 | . 52 18 85 17 . 22 147 62 . 62 8 4 . . . 4 17 4 . 2 . 1 . 14 1 2 50 212 Melee 40 | . . 9 . . . . . . . . 1 . . . . . . . . . . . . . . . 17 13 Projectile 744 | . 52 9 85 17 . 22 147 62 . 62 7 4 . . . 4 17 4 . 2 . 1 . 14 1 2 33 199 AOE 1 | . . . . . . . . . . . . . . . . . . . . . . . . . . . 1 . Critical Strikes 50 | . 2 . 3 . . 2 6 6 . 4 . . . . . . . . . 1 . . . . . 2 9 15 Actively Blocked 9 | . . . . . . . . . . . . . . . . . . . . . . . . . . 2 7 . Part Disruptions 2 | . . . . . . . . . . . . . . . . . . . . . . . . . . . . 2 Damage Taken 14370 | . 577 416 1051 212 . 352 2203 1054 . 1099 139 74 . . . 83 309 70 . 68 . 16 . 385 50 146 1455 4611 Core 2552 | . 64 82 83 20 . 57 196 69 . 82 20 26 . . . . 73 . . 34 . . . 122 . 18 617 989 Absorbed by Shields 665 | . . . . . . . . . . . . . . . . . . . . . . . . . . . . 665 Redirected to Shielding 244 | . . . . . . . . . . . . . . . . 27 28 17 . . . 10 . 50 . 96 16 . Regen/Repaired (Parts) 378 | . 119 . 78 . . . . . . . . . . . . . 22 . . 31 . . . 34 . 94 . . Core Remaining (%) 79 | 100 . 41 . . . 60 . . . 36 97 . . . . 97 . . . . 90 . 100 . . 90 . . Volleys Fired 579 | 10 43 7 102 20 . 23 130 70 . 58 6 . . . . 3 1 9 . . 1 . 1 7 . . 3 85 Largest 3 | 2 2 2 2 2 . 2 2 2 . 2 1 . . . . 1 1 1 . . 1 . 1 1 . . 1 3 Hottest 282 | 60 90 63 63 54 . 66 138 136 . 136 25 . . . . 60 60 30 . . 30 . 30 30 . . 30 282 Shots Fired 962 | 20 80 10 151 25 . 34 249 137 . 101 6 . . . . 3 1 9 . . 1 . 1 7 . . 3 124 Gun 266 | 20 42 4 14 18 . 14 112 7 . 28 6 . . . . 1 . . . . . . . . . . . . Cannon 610 | . 38 2 126 7 . 19 137 130 . 72 . . . . . . . . . . . . . . . . . 79 Launcher 82 | . . 4 11 . . 1 . . . . . . . . . . . 9 . . 1 . 1 7 . . 3 45 Special 4 | . . . . . . . . . . 1 . . . . . 2 1 . . . . . . . . . . . Kinetic 379 | 10 50 6 139 25 . 26 81 7 . 28 6 . . . . 1 . . . . . . . . . . . . Thermal 482 | 10 19 . . . . . 168 130 . 73 . . . . . 2 1 . . . . . . . . . . 79 Explosive 82 | . . 4 11 . . 1 . . . . . . . . . . . 9 . . 1 . 1 7 . . 3 45 Electromagnetic 19 | . 11 . 1 . . 7 . . . . . . . . . . . . . . . . . . . . . . Robot Hit Streak 17 | 5 8 4 14 8 . 10 17 10 . 9 1 . . . . . . 2 . . 2 . 3 1 . . 3 9 Robot Miss Streak 5 | 3 4 4 5 4 . 5 4 5 . 3 1 . . . . . . 1 . . . . . 2 . . 1 4 Penetration Max . | . . . . . . . . . . . . . . . . . . . . . . . . . . . . . Secondary Targets 2 | . 1 . . . . . 1 . . . . . . . . . . . . . . . . . . . . . Max Gunslinging Chain 1 | . 1 . . . . . 1 . . . . . . . . . . . . . . . . . . . . . Shots Hit Robots 686 | 13 50 16 101 20 . 27 181 78 . 66 2 . . . . . 11 2 2 7 2 . 2 6 4 3 7 86 Core Hits 381 | 4 22 9 52 16 . 19 70 36 . 24 1 . . . . . . 2 . . 1 . 2 7 1 . 8 107 Critical Kills 9 | . . 2 . . . . 2 1 . . . . . . . . . . . . . . . 1 . . . 3 Critical Parts Destroyed 12 | . 1 1 1 . . . . . . . . . . . . . 3 . . . . . . . 1 2 . 3 Critical Strikes 28 | . 2 3 5 . . . 4 1 . . . . . . . . 3 . . . . . . 1 1 2 . 6 Burn 2 | . . . . . . . 2 . . . . . . . . . . . . . . . . . . . . . Meltdown 5 | . . . . . . . 2 1 . . . . . . . . . . . . . . . . . . . 2 Blast 5 | . 1 . 4 . . . . . . . . . . . . . . . . . . . . . . . . . Smash 16 | . 1 3 1 . . . . . . . . . . . . . 3 . . . . . . 1 1 2 . 4 Melee Attacks 304 | . 4 23 5 . . . 1 2 . 4 14 . . . . . 37 . 6 18 3 10 17 62 17 25 40 16 Impact 275 | . 4 23 5 . . . . . . . . . . . . . 37 . 5 11 3 10 17 62 17 25 40 16 Slashing 21 | . . . . . . . 1 2 . 4 14 . . . . . . . . . . . . . . . . . Piercing . | . . . . . . . . . . . . . . . . . . . . . . . . . . . . . Sneak Attacks 39 | . 2 5 2 . . . . 1 . . . . . . . . 5 . 2 7 . . . 2 2 1 2 8 Combat Hostiles . | . . . . . . . . . . . . . . . . . . . . . . . . . . . . . Follow-up Attacks . | . . . . . . . . . . . . . . . . . . . . . . . . . . . . . Damage Inflicted 25075 | 116 990 525 2705 311 . 667 3800 1846 . 1296 32 . . . . . 640 163 113 . 126 . 136 440 179 240 602 10148 Guns 3204 | 116 316 72 158 228 . 248 1655 30 . 349 32 . . . . . . . . . . . . . . . . . Cannons 8544 | . 404 . 1412 77 . 346 2133 1619 . 947 . . . . . . . . . . . . . . . . . 1606 Explosions 9590 | . 104 99 807 . . 61 . 79 . . . . . . . . . 163 . . 42 . 105 185 . . 253 7692 Melee 3676 | . 166 354 328 . . . . 87 . . . . . . . . 640 . 113 . 84 . 31 255 179 240 349 850 Ramming 61 | . . . . 6 . 12 12 31 . . . . . . . . . . . . . . . . . . . . Kinetic 4427 | 61 374 72 1570 305 . 431 1203 30 . 349 32 . . . . . . . . . . . . . . . . . Thermal 7146 | 55 334 . . . . . 2585 1619 . 947 . . . . . . . . . . . . . . . . . 1606 Explosive 9486 | . . 99 807 . . 61 . 79 . . . . . . . . . 163 . . 42 . 105 185 . . 253 7692 Electromagnetic 279 | . 116 . . . . 163 . . . . . . . . . . . . . . . . . . . . . . Impact 3589 | . 166 354 328 . . . . . . . . . . . . . 640 . 113 . 84 . 31 255 179 240 349 850 Slashing 87 | . . . . . . . . 87 . . . . . . . . . . . . . . . . . . . . Piercing . | . . . . . . . . . . . . . . . . . . . . . . . . . . . . . Highest Corruption 11 | . 1 4 . . . . . . . . . . . . . 1 . . . . . . . 6 6 . 2 11 Average Corruption 3 | . 1 2 . . . . . . . . . . . . . 1 . . . . . . . 4 3 . 1 5 Corruption Purged 6 | . . . . . . . . . . . . . . . . . . . . . . . . . 6 . . . Corruption Blocked . | . . . . . . . . . . . . . . . . . . . . . . . . . . . . . Effects 47 | . 3 11 . . . . . . . . . . . . . . . . . . . . . 1 2 . . 30 Message Errors 11 | . . 2 . . . . . . . . . . . . . . . . . . . . . . 1 . . 8 Matter Fused 16 | . 1 7 . . . . . . . . . . . . . . . . . . . . . . 1 . . 7 Heat Flow Errors 2 | . . . . . . . . . . . . . . . . . . . . . . . . . . . . 2 Energy Discharges 6 | . . 1 . . . . . . . . . . . . . . . . . . . . . . . . . 5 Parts Rejected 2 | . . . . . . . . . . . . . . . . . . . . . . . . . . . . 2 Data Loss (minor) 4 | . 1 1 . . . . . . . . . . . . . . . . . . . . . . . . . 2 Data Loss (major) 1 | . . . . . . . . . . . . . . . . . . . . . . . . . . . . 1 Misfires 2 | . 1 . . . . . . . . . . . . . . . . . . . . . . . . . . 1 Alerts 3 | . . . . . . . . . . . . . . . . . . . . . . . . 1 . . . 2 Overload Shots . | . . . . . . . . . . . . . . . . . . . . . . . . . . . . . Overflow Damage 2151 | . 97 41 237 . . 1 15 92 . 2 . . . . . . 311 14 73 . 59 . . 38 67 185 108 811 Projectiles 133 | . . . 6 . . . 15 8 . 2 . . . . . . . . . . . . . . . . . 102 Explosions 346 | . . . 48 . . 1 . 27 . . . . . . . . . 14 . . . . . 11 . . 33 212 Melee 1672 | . 97 41 183 . . . . 57 . . . . . . . . 311 . 73 . 59 . . 27 67 185 75 497 Knockbacks 27 | . . 1 9 . . 2 4 . . . . . . . . . 3 . . . . . . 1 1 . . 6 Impact 13 | . . 1 1 . . . . . . . . . . . . . 3 . . . . . . 1 1 . . 6 Kinetic 14 | . . . 8 . . 2 4 . . . . . . . . . . . . . . . . . . . . . Secondary . | . . . . . . . . . . . . . . . . . . . . . . . . . . . . . Self-Inflicted Damage 458 | . . 27 . . . 21 . 157 . . . . . . . . . . . . . . . 41 . . 98 114 Shots 11 | . . 2 . . . 1 . 2 . . . . . . . . . . . . . . . 1 . . 3 2 Rammed 7 | . . . . 1 . 1 2 3 . . . . . . . . . . . . . . . . . . . . Targets Rammed 7 | . . . . 1 . 1 2 3 . . . . . . . . . . . . . . . . . . . . Kicked . | . . . . . . . . . . . . . . . . . . . . . . . . . . . . . Crushed . | . . . . . . . . . . . . . . . . . . . . . . . . . . . . . Highest Temperature 378 | 40 201 18 13 . . 12 293 333 . 148 13 . . . . 3 . . . . 9 26 48 13 . . 11 378 Average Temperature 54 | 19 57 9 9 . . 12 82 59 . 40 4 . . . . 3 . . . . 4 8 11 3 . . 8 102 Received Heat Transfer 3640 | . 285 9 462 72 . 144 1116 477 . 619 29 . . . . . 42 . . . . 9 . 9 . . 36 331 Effects 1 | . . . . . . . . . . . . . . . . . . . . . . . . . . . . 1 Energy Bleed 1 | . . . . . . . . . . . . . . . . . . . . . . . . . . . . 1 Siege Activations . | . . . . . . . . . . . . . . . . . . . . . . . . . . . . . Martial Activations . | . . . . . . . . . . . . . . . . . . . . . . . . . . . . . Shielding Activations . | . . . . . . . . . . . . . . . . . . . . . . . . . . . . . Robots Disrupted . | . . . . . . . . . . . . . . . . . . . . . . . . . . . . . Combat Hostiles . | . . . . . . . . . . . . . . . . . . . . . . . . . . . . . Robots Corrupted 25 | . . . 1 . . 1 . . . . . . . . . . 8 . 1 . 1 . . 1 3 2 1 6 Combat Hostiles 1 | . . . . . . 1 . . . . . . . . . . . . . . . . . . . . . . Parts Fried 46 | . 3 2 3 . . 2 . . . . . . . . . . 8 . 2 . 1 . . . 3 2 4 16 Impact Corruptions 61 | . 2 3 4 . . . . . . . . . . . . . 17 . 2 . 4 . . 2 4 5 3 15 Robots Melted 7 | . . . . . . . 4 1 . . . . . . . . . . . . . . . . . . . 2 Combat Hostiles 7 | . . . . . . . 4 1 . . . . . . . . . . . . . . . . . . . 2 Parts Melted 33 | . . . . . . . 16 7 . 9 . . . . . . . . . . . . . . . . . 1 Heat Transferred 11172 | 125 531 . . . . . 4773 2923 . 1414 . . . . . . . . . . . . . . . . . 1406 Parts Sabotaged . | . . . . . . . . . . . . . . . . . . . . . . . . . . . . . Parts Stolen . | . . . . . . . . . . . . . . . . . . . . . . . . . . . . . Parts Stripped . | . . . . . . . . . . . . . . . . . . . . . . . . . . . . . Power Chain Reactions 1 | . 1 . . . . . . . . . . . . . . . . . . . . . . . . . . . Alert | -11 -10 -10 -9 -9 -9 -8 -8 -8 -8 -8 -6 -5 -5 -5 -5 -4 -4 -4 -4 -4 -3 -3 -3 -2 -2 -2 -1 -1 ------- Run | Yrd Mat Min Mat Min Exi Min Mat Sto Rec Scr Fac Fac Upp Upp Zhi Pro Fac Upp Upp War Pro Res Tes Res Qua Frg Acc Com Maximum Alert Level 4 | . . . 2 1 . . 2 2 . . . . . . . . 1 . . . . . . . . . . 4 Low Security (%) 68 | 100 100 100 34 75 . 100 67 . 100 . 100 100 . . . . 97 . . . . 100 100 100 100 100 100 7 Level 1 13 | . . . 34 24 . . 9 54 . . . . . . . . 2 . . . . . . . . . . 14 Level 2 13 | . . . 31 . . . 22 45 . . . . . . . . . . . . . . . . . . . 19 Level 3 1 | . . . . . . . . . . . . . . . . . . . . . . . . . . . . 19 Level 4 3 | . . . . . . . . . . . . . . . . . . . . . . . . . . . . 38 Level 5 . | . . . . . . . . . . . . . . . . . . . . . . . . . . . . . High Security . | . . . . . . . . . . . . . . . . . . . . . . . . . . . . . Max Security . | . . . . . . . . . . . . . . . . . . . . . . . . . . . . . Peak Influence 1596 | 5 180 37 573 252 . 78 555 487 188 . 84 107 . . . . 205 . . . . 42 41 59 35 27 179 1596 Initial 228 | . . 37 . 217 . . 25 228 188 . . 39 . . . . . . . . . . 15 5 16 19 8 105 Average 195 | 1 72 1 273 129 . 17 188 384 111 . 34 31 . . . . 70 . . . . 12 16 21 6 7 81 872 Influence Increases 9603 | 10 449 42 1161 220 . 262 1127 849 11 . 384 178 . . . . 597 80 80 15 10 100 125 428 112 114 507 2742 Destroy 0b10 Robot/C 3640 | . 260 . 680 160 . 200 720 480 . . . . . . . . . 20 . . . . . . . . 60 1060 Destroy 0b10 Robot/NC 415 | 10 25 10 55 . . . 60 15 . . . . . . . . 45 . 5 . 10 . 5 20 20 15 10 110 Destroy Leader 882 | . 74 . 162 30 . 50 198 154 . . . . . . . . 10 . . . . . 2 6 4 6 10 176 Allied During Kill 239 | . . . . . . . . . . . . . . . . . . . . . . . . . . . . 239 Successful Hack 422 | . 9 . 70 . . . 22 31 11 . 48 18 . . . . 77 . . . . 28 4 24 19 12 34 15 Disable Machine 630 | . 60 . 60 15 . . 60 105 . . 60 . . . . . 30 . . . . . 90 15 15 15 45 60 Anti-Garrison Action 50 | . . . . . . . . . . . . . . . . . . . . . . . . . . . . 50 Destroy Structure 1735 | . 6 32 74 . . 12 22 19 . . 81 40 . . . . 90 . . . . 12 24 213 9 36 78 987 Partial Spotted 300 | . . . . . . . . . . . 15 15 . . . . 120 . . . . 45 . 90 . . 15 . Lose Combat Pursuer 1290 | . 15 . 60 15 . . 45 45 . . 180 105 . . . . 225 60 75 15 . 15 . 60 45 30 255 45 Influence Decreases 8318 | 10 352 139 604 777 . 196 650 908 456 39 304 151 107 . . . 398 154 75 138 17 72 143 408 107 134 357 1622 Entered New Map 1524 | . . 60 . 340 . . 41 315 296 39 . 41 41 . . . . 74 25 130 7 . 13 5 14 16 7 60 Time Decay 5230 | 10 342 69 434 437 . 186 579 583 160 . 284 110 66 . . . 348 70 50 8 10 72 130 343 84 113 220 522 Lost Part 501 | . 10 10 20 . . 10 30 10 . . . . . . . . 30 10 . . . . . 16 . 5 130 220 Lost Ally 879 | . . . . . . . . . . . 20 . . . . . 20 . . . . . . 10 9 . . 820 Purge Threat 184 | . . . 150 . . . . . . . . . . . . . . . . . . . . 34 . . . . Squads Dispatched 61 | . 3 . 5 . . 1 5 4 . . 4 2 . . . . 5 . . . . 2 1 7 2 2 7 11 Investigation 14 | . . . 1 . . 1 2 . . . 1 1 . . . . 3 . . . . 2 . 2 . . . 1 Extermination 22 | . . . . . . . . . . . 3 . . . . . 2 . . . . . 1 5 2 1 3 5 Reinforcement 19 | . 3 . 4 . . . 2 3 . . . 1 . . . . . . . . . . . . . 1 4 1 Assault 4 | . . . . . . . . . . . . . . . . . . . . . . . . . . . . 4 Garrison 2 | . . . . . . . 1 1 . . . . . . . . . . . . . . . . . . . . Intercept . | . . . . . . . . . . . . . . . . . . . . . . . . . . . . . Searches Triggered . | . . . . . . . . . . . . . . . . . . . . . . . . . . . . . Construction Impeded 1 | . . . 1 . . . . . . . . . . . . . . . . . . . . . . . . . Haulers Reinforced 1 | . . . . . . . . . . . . . . . . . . . . . . . . . . . 1 . Active Scanning Responses . | . . . . . . . . . . . . . . . . . . . . . . . . . . . . . Cargo Convoy Interrupts . | . . . . . . . . . . . . . . . . . . . . . . . . . . . . . Stealth | -11 -10 -10 -9 -9 -9 -8 -8 -8 -8 -8 -6 -5 -5 -5 -5 -4 -4 -4 -4 -4 -3 -3 -3 -2 -2 -2 -1 -1 --------- Run | Yrd Mat Min Mat Min Exi Min Mat Sto Rec Scr Fac Fac Upp Upp Zhi Pro Fac Upp Upp War Pro Res Tes Res Qua Frg Acc Com Distress Signals 26 | . 2 1 4 . . . 4 4 . . 1 1 . . . . 1 . . 1 . 1 . . . . . 6 Communications Jammed 36 | . . . . . . . . . . . . . . . . 4 9 . . . 1 9 . . . 5 8 . Distress Signals 35 | . . . . . . . . . . . . . . . . 4 9 . . . . 9 . . . 5 8 . Times Spotted 455 | . 25 9 46 9 . 10 50 33 . 32 21 13 . . . 5 30 10 4 9 1 4 3 14 12 6 33 76 Peak Tracking Total 12 | . 6 2 5 3 . 3 4 4 . 5 5 11 . . . 5 10 10 5 10 1 2 1 4 6 2 10 12 Tactical Retreats 48 | . 1 2 2 1 . . 3 3 . . 4 2 . . . . 6 1 1 1 . 1 . 4 2 2 9 3 Traps | -11 -10 -10 -9 -9 -9 -8 -8 -8 -8 -8 -6 -5 -5 -5 -5 -4 -4 -4 -4 -4 -3 -3 -3 -2 -2 -2 -1 -1 ------- Run | Yrd Mat Min Mat Min Exi Min Mat Sto Rec Scr Fac Fac Upp Upp Zhi Pro Fac Upp Upp War Pro Res Tes Res Qua Frg Acc Com Traps Triggered 19 | . 1 . 1 1 . . 2 1 . . 2 1 . . . . 3 . . . . . . 1 . 3 . 3 Indirectly . | . . . . . . . . . . . . . . . . . . . . . . . . . . . . . Trap Hack Attempts . | . . . . . . . . . . . . . . . . . . . . . . . . . . . . . Triggered . | . . . . . . . . . . . . . . . . . . . . . . . . . . . . . Disarmed . | . . . . . . . . . . . . . . . . . . . . . . . . . . . . . Reprogrammed 6 | . . . . . . . . . . . . . . . . . . . . . . . . . 6 . . . Reused . | . . . . . . . . . . . . . . . . . . . . . . . . . . . . . Traps Extracted . | . . . . . . . . . . . . . . . . . . . . . . . . . . . . . Installed . | . . . . . . . . . . . . . . . . . . . . . . . . . . . . . Triggered . | . . . . . . . . . . . . . . . . . . . . . . . . . . . . . Most Traps Carried 1 | . . . . . . . . . . . . . . . . . . . 1 1 . . . . . . . . Time Bombs Activated 1 | . . . . . . . . . . . . . . . . . . . . 1 . . . . . . . . Exploded 1 | . . . . . . . . . . . . . . . . . . . . 1 . . . . . . . . Machines | -11 -10 -10 -9 -9 -9 -8 -8 -8 -8 -8 -6 -5 -5 -5 -5 -4 -4 -4 -4 -4 -3 -3 -3 -2 -2 -2 -1 -1 ---------- Run | Yrd Mat Min Mat Min Exi Min Mat Sto Rec Scr Fac Fac Upp Upp Zhi Pro Fac Upp Upp War Pro Res Tes Res Qua Frg Acc Com Machines Disabled 51 | . 5 . 4 1 . . 4 7 . 3 4 . . . . 2 2 . . . 1 . 6 1 1 1 3 6 Max in Single Turn 2 | . 2 . 1 1 . . 1 2 . 1 1 . . . . 1 1 . . . 1 . 1 1 1 1 1 1 Garrison Access 7 | . . . . . . . 1 . . . 1 1 . . . . 2 . . . . . 1 . 1 . . . Phase Generator 1 | . . . . . . . . . . . . . . . . . . . . . . . . . . . . 1 Machines Repaired . | . . . . . . . . . . . . . . . . . . . . . . . . . . . . . Machines Dismantled . | . . . . . . . . . . . . . . . . . . . . . . . . . . . . . Machines Sabotaged . | . . . . . . . . . . . . . . . . . . . . . . . . . . . . . Overloaded Fab Kills . | . . . . . . . . . . . . . . . . . . . . . . . . . . . . . Hacking | -11 -10 -10 -9 -9 -9 -8 -8 -8 -8 -8 -6 -5 -5 -5 -5 -4 -4 -4 -4 -4 -3 -3 -3 -2 -2 -2 -1 -1 --------- Run | Yrd Mat Min Mat Min Exi Min Mat Sto Rec Scr Fac Fac Upp Upp Zhi Pro Fac Upp Upp War Pro Res Tes Res Qua Frg Acc Com Machines Accessed 150 | . 3 . 12 1 1 1 10 9 3 7 17 4 1 1 8 1 13 . . 2 1 5 4 15 9 7 7 8 Terminals 93 | . 2 . 10 . . 1 6 8 2 . 10 3 . . . 1 9 . . . . 3 2 11 7 5 5 8 Fabricators 3 | . . . . . . . . . . . 1 . . . . . . . . . . 1 . . . . 1 . Repair Stations 10 | . 1 . 1 . . . 2 1 . . 1 . . . . . 1 . . . . . . 1 . 2 . . Recycling Units 3 | . . . . . . . . . . . 1 . . . . . 1 . . . . . . 1 . . . . Scanalyzers 10 | . . . 1 . . . 1 . . . 3 . . . . . . . . . . . 1 2 1 . 1 . Garrison Access 8 | . . . . . . . 1 . . . 1 1 . . . . 2 . . . . 1 1 . 1 . . . Total Hacks 449 | . 14 . 36 1 4 2 29 22 4 62 38 10 1 1 43 1 38 . . 2 1 13 9 42 26 16 18 16 Successful 282 | . 7 . 17 1 4 . 12 11 3 62 21 4 1 1 43 1 18 . . 2 1 7 7 26 13 9 8 3 Failed 166 | . 7 . 18 . . 2 17 11 1 . 17 6 . . . . 20 . . . . 6 2 16 13 7 10 13 Catastrophic 30 | . . . 3 . . 1 4 2 1 . 2 . . . . . 2 . . . . 2 1 3 3 . 2 4 Database Lockouts 1 | . . . 1 . . . . . . . . . . . . . . . . . . . . . . . . . Manual 125 | . 8 . 13 . . 2 9 6 1 . 19 4 . . . . 13 . . . . 2 2 13 17 4 10 2 Terminals 251 | . 8 . 29 . . 2 20 20 3 . 23 8 . . . 1 31 . . . . 9 4 29 24 12 12 16 Fabricators 10 | . . . . . . . . . . . 3 . . . . . . . . . . 3 . . . . 4 . Repair Stations 27 | . 6 . 2 . . . 4 2 . . 1 . . . . . 3 . . . . . . 5 . 4 . . Recycling Units 8 | . . . . . . . . . . . 1 . . . . . 2 . . . . . . 5 . . . . Scanalyzers 25 | . . . 5 . . . 3 . . . 7 . . . . . . . . . . . 4 3 1 . 2 . Garrison Access 12 | . . . . . . . 2 . . . 3 2 . . . . 2 . . . . 1 1 . 1 . . . Terminal Hacks 203 | . 2 . 9 1 4 . 8 9 3 62 6 3 1 1 43 1 9 . . 2 1 3 2 13 8 4 5 3 Record 107 | . . . . . 4 . . . 1 62 . . . . 35 . 1 . . . 1 . . 1 1 . . 1 Part Schematic 6 | . . . . . . . . . . . . . . . 4 . 1 . . . . . . 1 . . . . Robot Analysis 1 | . . . . . . . . 1 . . . . . . . . . . . . . . . . . . . . Prototype ID Bank 15 | . 2 . 1 . . . 4 . 2 . 2 . . . 4 . . . . . . . . . . . . . Open Door 14 | . . . . 1 . . . 4 . . . . 1 1 . 1 . . . 2 . . . 1 . . 3 . Open DSF 1 | . . . . . . . . . . . 1 . . . . . . . . . . . . . . . . . Branch Access Points 5 | . . . . . . . 1 1 . . 1 . . . . . 1 . . . . . . . 1 . . . Terminal Index 5 | . . . . . . . . . . . 1 1 . . . . . . . . . . . 1 1 . 1 . Fabricator Index 2 | . . . . . . . . . . . . . . . . . 1 . . . . . . 1 . . . . Alert Level 7 | . . . 3 . . . 2 . . . . . . . . . 1 . . . . . . . 1 . . . Unreport Threat 2 | . . . 1 . . . . . . . . . . . . . . . . . . . . 1 . . . . Locate Traps 16 | . . . 2 . . . 1 1 . . 1 2 . . . . 1 . . . . 1 . 1 1 3 1 1 Reprogram Traps 1 | . . . . . . . . . . . . . . . . . . . . . . . . . 1 . . . Dispatch Records 3 | . . . 1 . . . . . . . . . . . . . 1 . . . . . . 1 . . . . Transport Status 2 | . . . . . . . . . . . . . . . . . . . . . . . . 2 . . . . Recall Extermination 6 | . . . . . . . . . . . . . . . . . 2 . . . . . 1 2 . 1 . . Hauler Manifests 3 | . . . 1 . . . . 1 . . . . . . . . . . . . . . 1 . . . . . Registered Components 1 | . . . . . . . . . . . . . . . . . . . . . . 1 . . . . . . Registered Prototypes 2 | . . . . . . . . . . . . . . . . . . . . . . 1 . . 1 . . . Zone Layout 3 | . . . . . . . . 1 . . . . . . . . . . . . . . . 1 1 . . . Disengage Seal 1 | . . . . . . . . . . . . . . . . . . . . . . . . . . . . 1 Fabricator Hacks 4 | . . . . . . . . . . . 1 . . . . . . . . . . 2 . . . . 1 . Network Status 2 | . . . . . . . . . . . 1 . . . . . . . . . . . . . . . 1 . Load Schematic 1 | . . . . . . . . . . . . . . . . . . . . . . 1 . . . . . . Build 1 | . . . . . . . . . . . . . . . . . . . . . . 1 . . . . . . Repair Station Hacks 21 | . 5 . 2 . . . 3 2 . . 1 . . . . . 2 . . . . . . 3 . 3 . . Scan Component 13 | . 3 . 1 . . . 2 1 . . 1 . . . . . 1 . . . . . . 2 . 2 . . Repair 8 | . 2 . 1 . . . 1 1 . . . . . . . . 1 . . . . . . 1 . 1 . . Recycling Unit Hacks 6 | . . . . . . . . . . . . . . . . . 1 . . . . . . 5 . . . . Process 2 | . . . . . . . . . . . . . . . . . . . . . . . . 2 . . . . Report Inventory 2 | . . . . . . . . . . . . . . . . . . . . . . . . 2 . . . . Retrieve Matter 1 | . . . . . . . . . . . . . . . . . . . . . . . . 1 . . . . Retrieve Components 1 | . . . . . . . . . . . . . . . . . 1 . . . . . . . . . . . Scanalyzer 20 | . . . 4 . . . . . . . 7 . . . . . . . . . . . 4 3 1 . 1 . Insert Component 7 | . . . 1 . . . . . . . 2 . . . . . . . . . . . 2 2 . . . . Analyze 7 | . . . 2 . . . . . . . 3 . . . . . . . . . . . 2 . . . . . Retrieve Study 6 | . . . 1 . . . . . . . 2 . . . . . . . . . . . . 1 1 . 1 . Garrison Access Hacks 7 | . . . . . . . 1 . . . 1 1 . . . . 2 . . . . . 1 . 1 . . . Seal Access 7 | . . . . . . . 1 . . . 1 1 . . . . 2 . . . . . 1 . 1 . . . Unauthorized Hacks 20 | . . . 2 . . . . . . . 4 . . . . . 4 . . . . 2 . 2 3 2 1 . Terminals 19 | . . . 2 . . . . . . . 4 . . . . . 4 . . . . 2 . 2 3 2 . . Assimilate 14 | . . . . . . . . . . . 2 . . . . . 4 . . . . 2 . 2 2 2 . . Botnet 3 | . . . 2 . . . . . . . 1 . . . . . . . . . . . . . . . . . Disrupt 1 | . . . . . . . . . . . . . . . . . . . . . . . . . 1 . . . Operators 1 | . . . . . . . . . . . 1 . . . . . . . . . . . . . . . . . Fabricators 1 | . . . . . . . . . . . . . . . . . . . . . . . . . . . 1 . Haulers 1 | . . . . . . . . . . . . . . . . . . . . . . . . . . . 1 . Repair Stations . | . . . . . . . . . . . . . . . . . . . . . . . . . . . . . Recycling Units . | . . . . . . . . . . . . . . . . . . . . . . . . . . . . . Scanalyzers . | . . . . . . . . . . . . . . . . . . . . . . . . . . . . . Garrison Access . | . . . . . . . . . . . . . . . . . . . . . . . . . . . . . Data Cores Recovered 2 | . . . . . . . 1 . . . . . . . . . 1 . . . . . . . . . . . Used . | . . . . . . . . . . . . . . . . . . . . . . . . . . . . . Hacking Detections 97 | . 3 . 11 . . 1 8 8 2 . 14 4 . . . . 10 . . . . 4 3 7 6 4 5 7 Full Trace Events 11 | . . . 1 . . 1 1 . . . 1 1 . . . . 3 . . . . 2 . 1 . . . . Feedback Events 2 | . . . . . . . . . . . . . . . . . 2 . . . . . . . . . . . Hackware Fried 2 | . . . . . . . . . . . . . . . . . 2 . . . . . . . . . . . Feedback Blocked . | . . . . . . . . . . . . . . . . . . . . . . . . . . . . . Robot Schematics Acquired . | . . . . . . . . . . . . . . . . . . . . . . . . . . . . . Robots Built . | . . . . . . . . . . . . . . . . . . . . . . . . . . . . . Authchips . | . . . . . . . . . . . . . . . . . . . . . . . . . . . . . Time . | . . . . . . . . . . . . . . . . . . . . . . . . . . . . . Total Robot Build Rating . | . . . . . . . . . . . . . . . . . . . . . . . . . . . . . Part Schematics Acquired 17 | . . . 1 . . . . . . . 8 . . . 4 . 1 . . . . . 2 1 . . . . Parts Built 1 | . . . . . . . . . . . . . . . . . . . . . . 1 . . . . . . Authchips . | . . . . . . . . . . . . . . . . . . . . . . . . . . . . . Time 35 | . . . . . . . . . . . . . . . . . . . . . . 35 . . . . . . Total Part Build Rating 6 | . . . . . . . . . . . . . . . . . . . . . . 6 . . . . . . Part Studies Acquired 5 | . . . . . . . . . . . 2 . . . . . . . . . . . . 1 1 . 1 . Parts Repaired 7 | . 2 . 1 . . . 1 . . . . . . . . . 1 . . . . . . 1 . 1 . . Time 276 | . 79 . 26 . . . 64 51 . . . . . . . . 30 . . . . . . 10 . 16 . . Parts Recycled . | . . . . . . . . . . . . . . . . . . . . . . . . . . . . . Recycled Matter 103 | . . . . . . . . . . . . . . . . . . . . . . . . 103 . . . . Retrieved Matter 103 | . . . . . . . . . . . . . . . . . . . . . . . . 103 . . . . Retrieved Components 3 | . . . . . . . . . . . . . . . . . 3 . . . . . . . . . . . Parts Scanalyzed 5 | . . . 1 . . . . . . . 2 . . . . . . . . . . . 2 . . . . . Part Schematics Acquired 5 | . . . 1 . . . . . . . 2 . . . . . . . . . . . 2 . . . . . Parts Damaged 1 | . . . 1 . . . . . . . . . . . . . . . . . . . . . . . . . Bothacking | -11 -10 -10 -9 -9 -9 -8 -8 -8 -8 -8 -6 -5 -5 -5 -5 -4 -4 -4 -4 -4 -3 -3 -3 -2 -2 -2 -1 -1 ------------ Run | Yrd Mat Min Mat Min Exi Min Mat Sto Rec Scr Fac Fac Upp Upp Zhi Pro Fac Upp Upp War Pro Res Tes Res Qua Frg Acc Com Used RIF Installer . | . . . . . . . . . . . . . . . . . . . . . . . . . . . . . Robots Hacked 1 | . . . . . . . . . . . . . . . . . . . 1 . . . . . . . . . Non-combat 1 | . . . . . . . . . . . . . . . . . . . 1 . . . . . . . . . Combat . | . . . . . . . . . . . . . . . . . . . . . . . . . . . . . Robot Hacks Applied 1 | . . . . . . . . . . . . . . . . . . . 1 . . . . . . . . . no_distress 1 | . . . . . . . . . . . . . . . . . . . 1 . . . . . . . . . Relay Couplers Released . | . . . . . . . . . . . . . . . . . . . . . . . . . . . . . Fabnet Peak Effective % . | . . . . . . . . . . . . . . . . . . . . . . . . . . . . . Robots Rewired 5 | . . . . . . . . . . . . . . . . . . . . 5 . . . . . . . . Allies Hacked . | . . . . . . . . . . . . . . . . . . . . . . . . . . . . . Hacks Repelled . | . . . . . . . . . . . . . . . . . . . . . . . . . . . . . Allies | -11 -10 -10 -9 -9 -9 -8 -8 -8 -8 -8 -6 -5 -5 -5 -5 -4 -4 -4 -4 -4 -3 -3 -3 -2 -2 -2 -1 -1 -------- Run | Yrd Mat Min Mat Min Exi Min Mat Sto Rec Scr Fac Fac Upp Upp Zhi Pro Fac Upp Upp War Pro Res Tes Res Qua Frg Acc Com Total Allies 69 | . . . . 2 . . . . . . 2 . . . . . 2 . . 5 . 1 . 2 2 . . 53 Largest Group 16 | . . . . 2 2 . . . . . 1 . . . . . 2 . . 5 . 1 1 2 2 . . 16 Highest-Rated Group 447 | . . . . 39 39 . . . . . 26 . . . . . 79 . . 261 . 26 26 71 71 . . 447 Highest-Rated Ally 234 | . . . . 31 31 . . . . . 26 . . . . . 45 . . 64 . 26 26 45 45 . . 234 Total Orders 9 | . . . . . . . . . . . . . . . . . . . . 6 . . . . . . . 3 STAY 5 | . . . . . . . . . . . . . . . . . . . . 5 . . . . . . . . FOLLOW 1 | . . . . . . . . . . . . . . . . . . . . 1 . . . . . . . . EXPLORE 2 | . . . . . . . . . . . . . . . . . . . . . . . . . . . . 2 RETURN 1 | . . . . . . . . . . . . . . . . . . . . . . . . . . . . 1 Ally Attacks 236 | . . . . . . . . . . . . . . . . . . . . 26 . . . . . . . 210 Total Damage 4999 | . . . . . . . . . . . . . . . . . . . . 1152 . . . . . . . 3847 Kills 28 | . . . . . . . . . . . . . . . . . . . . 7 . . . . . . . 21 Allies Corrupted 2 | . . . . . . . . . . . . . . . . . 1 . . . . . . . . . . 1 Allies Melted 9 | . . . . . . . . . . 9 . . . . . . . . . . . . . . . . . . Intel | -11 -10 -10 -9 -9 -9 -8 -8 -8 -8 -8 -6 -5 -5 -5 -5 -4 -4 -4 -4 -4 -3 -3 -3 -2 -2 -2 -1 -1 ------- Run | Yrd Mat Min Mat Min Exi Min Mat Sto Rec Scr Fac Fac Upp Upp Zhi Pro Fac Upp Upp War Pro Res Tes Res Qua Frg Acc Com Active Infowar (turns) 17723 | 8 1687 758 . . . . 1621 1815 339 3350 979 230 153 105 93 465 960 141 109 502 345 198 314 871 270 366 597 1447 Optics 15270 | . . . . . . . 1621 1815 339 3350 979 230 153 105 93 465 960 141 109 502 345 198 314 871 270 366 597 1447 Sensors 6595 | . . . . . . . . . . . 951 229 153 105 93 453 958 141 106 450 345 198 314 863 258 366 405 207 Terrain 2784 | . . . . . . . . . . . . . . . . . . . . . 335 198 314 802 256 363 516 . Structural 3074 | . . . . . . . . . . . 474 199 153 96 88 465 922 139 109 428 1 . . . . . . . Seismic 2453 | 8 1687 758 . . . . . . . . . . . . . . . . . . . . . . . . . . Cloaking 1333 | . . . . . . . . . . . . . . . . . . . . 43 . 14 . 22 4 61 162 1027 Jamming 3232 | . . . . . . . . . . . . . . . . 12 960 . . . 7 130 314 867 220 308 414 . Robot Analysis Total 1 | . . . . . . . . 1 . . . . . . . . . . . . . . . . . . . . Derelict Logs Recovered 9 | . . . . 1 . . . . . . . . 1 1 . 3 . 1 2 . . . . . . . . . Drone Launches 2 | . . . . . . . . . . . . . . . . . . . . . . . . . . . . 2 Drone Recoveries 2 | . . . . . . . . . . . . . . . . . . . . . . . . . . . . 2 Exploration | -11 -10 -10 -9 -9 -9 -8 -8 -8 -8 -8 -6 -5 -5 -5 -5 -4 -4 -4 -4 -4 -3 -3 -3 -2 -2 -2 -1 -1 ------------- Run | Yrd Mat Min Mat Min Exi Min Mat Sto Rec Scr Fac Fac Upp Upp Zhi Pro Fac Upp Upp War Pro Res Tes Res Qua Frg Acc Com Turns Passed 24675 | 66 1687 1261 2330 1143 1005 947 2587 1815 339 3350 979 230 153 105 93 465 960 141 109 502 345 198 314 871 270 366 597 1447 Spaces Moved 25367 | 30 921 660 1159 672 622 501 1168 868 200 1832 2379 604 397 311 208 672 2080 444 377 1124 655 421 605 1968 701 928 1367 1493 Core 69 | . . . . . . . . . . . . . . . . . . . . . . . . . . . . 69 Treads 8509 | . 818 660 1159 672 622 501 1168 868 200 1832 9 . . . . . . . . . . . . . . . . . Legs 748 | 30 103 . . . . . . . . . . . . . . . . . . . . . . . . . . 615 Wheels 1 | . . . . . . . . . . . . . . . . . . . . . . . . . . . . 1 Hover 1 | . . . . . . . . . . . . . . . . . . . . . . . . . . . . 1 Flight 16039 | . . . . . . . . . . . 2370 604 397 311 208 672 2080 444 377 1124 655 421 605 1968 701 928 1367 807 Fastest Speed 13 | 120 120 160 160 160 160 160 160 160 170 162 26 23 26 26 23 23 23 23 23 21 20 19 19 19 13 13 13 27 Average Speed 73 | 120 155 160 160 160 160 172 163 167 170 168 26 24 26 26 25 23 23 23 23 22 20 19 19 19 18 18 22 69 Slowest Speed 240 | 120 160 160 240 160 160 240 240 170 170 170 170 26 26 26 26 23 99 23 23 23 21 20 19 86 19 19 34 190 Overloaded Moves 22 | . . . . . . . . . . . . . . . . . . . . . . . . . 11 1 9 1 Propulsion Burnouts 1 | . . . . . . . . . . . . . . . . . . . . . . . . . . . 1 . Robots Hopped 56 | . . . . . . . . . . . 6 1 . . 1 . 18 . 1 1 2 1 3 8 6 2 5 1 Potential Cave-ins 4 | . . . . . . . . . . . . 2 . . . . 2 . . . . . . . . . . . Cave-ins Triggered . | . . . . . . . . . . . . . . . . . . . . . . . . . . . . . Exploration Rate (%) 66 | 4 97 99 88 98 78 98 85 88 48 93 69 32 74 65 63 65 52 82 71 95 73 14 76 50 65 31 41 38 Regions Visited 28 Branch Regions 19 Pre-discovered Areas 13 | . . . . . 1 . . 1 . 5 . . . . 3 1 . 1 1 . . . . . . . . . Known Exits Taken 19 | . . . . . . . 1 1 . . 1 1 1 1 1 1 1 1 1 1 1 1 1 1 1 1 1 . Unknown Exits Taken 9 | 1 1 1 1 1 1 1 . . 1 1 . . . . . . . . . . . . . . . . . . Scrap Searched 22 | . . 2 . 3 . 1 . . . 2 . . 3 2 . 2 . 2 1 . 4 . . . . . . . Spaces Dug 360 | . 1 6 . . . . 1 1 . 3 85 22 9 1 . 36 57 35 3 4 1 6 5 46 3 12 18 5 Terrain Destroyed 969 | . 4 38 98 . . 14 13 12 . 2 85 22 9 1 . 12 53 78 3 4 9 6 12 73 3 12 26 380 Melee 135 | . 1 6 . . . . 1 1 . 2 14 . . . . . 18 . 3 4 1 6 5 38 3 12 18 2 Projectile 48 | . . . . . . 2 12 . . . . . . . . . . . . . . . . . . . . 34 AOE 636 | . 3 32 98 . . 12 . 11 . . . . . . . . . 78 . . 8 . 7 35 . . 8 344 Terrain Rammed . | . . . . . . . . . . . . . . . . . . . . . . . . . . . . . Walls Destroyed . | . . . . . . . . . . . . . . . . . . . . . . . . . . . . . Machines Disabled . | . . . . . . . . . . . . . . . . . . . . . . . . . . . . . Actions | -11 -10 -10 -9 -9 -9 -8 -8 -8 -8 -8 -6 -5 -5 -5 -5 -4 -4 -4 -4 -4 -3 -3 -3 -2 -2 -2 -1 -1 --------- Run | Yrd Mat Min Mat Min Exi Min Mat Sto Rec Scr Fac Fac Upp Upp Zhi Pro Fac Upp Upp War Pro Res Tes Res Qua Frg Acc Com Total 30044 | 41 1091 816 1477 715 635 547 1604 1108 199 1996 2696 682 446 334 246 974 2487 473 390 1356 856 519 773 2351 805 1076 1590 1761 Wait 2934 | . 46 92 93 16 . 10 186 95 . 65 260 65 50 24 23 298 330 17 3 184 184 76 151 293 80 85 152 56 Move 25230 | 29 920 659 1158 671 621 500 1167 867 199 1831 2366 601 396 310 205 671 2045 443 374 1121 650 418 598 1952 688 923 1356 1491 Hop 53 | . . . . . . . . . . . 6 1 . . 1 . 16 . 1 1 2 1 3 7 6 2 5 1 Pick Up 210 | 1 27 11 34 2 5 3 28 13 . 9 6 2 . . 2 . 16 1 2 7 4 4 1 6 2 1 6 17 Fast Attach 76 | 1 1 . 1 . . . 4 2 . 1 2 . . . 5 . 9 . 2 2 . . . 3 1 2 3 37 Attach 74 | . 1 2 6 . 2 1 6 3 . 1 5 2 . . 1 . 11 1 1 . . 2 . 2 2 1 11 13 Detach 35 | . . . 2 . . . 1 2 . 1 2 . . . . . 5 . . . . . . 1 2 . 6 13 Swap 237 | . 26 12 40 2 1 5 36 21 . 14 15 1 . . 3 2 6 1 . 11 7 5 1 14 5 3 1 5 Drop 263 | . 23 10 36 3 6 4 43 30 . 12 14 1 . . 6 . 11 1 1 11 5 3 1 4 2 2 7 27 Fire 579 | 10 43 7 102 20 . 23 130 70 . 58 6 . . . . 3 1 9 . . 1 . 1 7 . . 3 85 Melee 304 | . 4 23 5 . . . 1 2 . 4 14 . . . . . 37 . 6 18 3 10 17 62 17 25 40 16 Ram . | . . . . . . . . . . . . . . . . . . . . . . . . . . . . . Kick . | . . . . . . . . . . . . . . . . . . . . . . . . . . . . . Crush 7 | . . . . 1 . 1 2 3 . . . . . . . . . . . . . . . . . . . . Escape Stasis 41 | . . . . . . . . . . . . 9 . . . . . . . . . . . . . 32 . . Rewire . | . . . . . . . . . . . . . . . . . . . . . . . . . . . . . Trap 1 | . . . . . . . . . . . . . . . . . . . . 1 . . . . . . . . Miscellaneous . | . . . . . . . . . . . . . . . . . . . . . . . . . . . . . Route ------- -11/Scrapyard -10/Materials (discovered 4 exits: *Mat x3 / [*Min]) -10/Mines (discovered 2 exits: *Mat x2) -9/Materials (discovered 3 exits: *Mat x2 / *Min) -9/Mines (discovered 3 exits: *Mat x2 / *Exi) -9/Exiles -8/Mines (discovered 2 exits: *Mat x2) -8/Materials (discovered 4 exits: [*Fac x2] / *Sto x2) -8/Storage (discovered 2 exits: [*Fac] / *Rec) -8/Recycling -8/Scraptown (discovered 2 exits: *Fac x2) -6/Factory (discovered 6 exits: *Fac x4 / *Low x2) -5/Factory (discovered 2 exits: *Upp x2) -5/Upper Caves -5/Upper Caves (discovered 2 exits: *Fac / *Zhi) -5/Zhirov -4/Proximity Caves -4/Factory (discovered 5 exits: *Upp x2 / *Ext x2 / Arm) -4/Upper Caves -4/Upper Caves -4/Warlord -3/Proximity Caves -3/Research (discovered 2 exits: *Tes x2) -3/Testing -2/Research (discovered 3 exits: Acc / *Qua x2) -2/Quarantine (discovered 3 exits: *Acc / *Sec / *Frg) -2/Protoforge -1/Access -1/Command History --------- Turn | Location | Event 1 | -11/Scrapyard | Discovered new exit (range 3) 67 | -11/Scrapyard | Entered Materials 315 | -10/Materials | Build established: Mutant 602 | -10/Materials | Discovered new exit (range 3) 851 | -10/Materials | Discovered new exit (range 5) 1050 | -10/Materials | Discovered new exit (range 9) 1224 | -10/Materials | Discovered new exit (range 11) 1458 | -10/Materials | Repaired Lgt. Treads 1513 | -10/Materials | Repaired Broken Imp. Terrain Scanner? 1754 | -10/Materials | Entered Mines 1845 | -10/Mines | A weapon hastily lodged in a ceiling crevice suddenly fell to the ground 1884 | -10/Mines | Joined a pair of Derelicts in attacking an 0b10 outpost 2086 | -10/Mines | Assembled infested the area 2091 | -10/Mines | Assisted by a Guerilla fighting off Assembled 2598 | -10/Mines | Core integrity fell below 50% 2686 | -10/Mines | Discovered new exit (range 10) 2727 | -10/Mines | Discovered new exit (range 10) 3015 | -10/Mines | Entered Materials 3015 | -9/Materials | Evolved 2 slots: Propulsion x1, Utility x1 3300 | -9/Materials | Build established: Scavenger-Mutant 3559 | -9/Materials | Discovered new exit (range 16) 4184 | -9/Materials | Discovered new exit (range 16) 4384 | -9/Materials | Discovered new exit (range 4) 5015 | -9/Materials | Repaired Lgt. Cannon 5107 | -9/Materials | Central database locked down 5345 | -9/Materials | Entered Mines 5363 | -9/Mines | Discovered new exit (range 13) 5402 | -9/Mines | Build established: Mutant 5430 | -9/Mines | Learned Materials stockpile data 5669 | -9/Mines | Deemed a non-threat by the Exiles lab entrance 5669 | -9/Mines | Discovered new exit (range 5) 5693 | -9/Mines | Found a Scrap Suit stashed away for nefarious purposes 5751 | -9/Mines | Discovered new exit (range 9) 6269 | -9/Mines | Met a Derelict who couldn't figure out how to use a Trap Extractor 6488 | -9/Mines | Entered Exiles 6488 | -9/Exiles | Accompanied by 2 allies 6518 | -9/Exiles | Led the pair of lost Derelicts to a safe place 6527 | -9/Exiles | Met 8R-AWN 6554 | -9/Exiles | Met EX-HEX 6595 | -9/Exiles | Build established: Scavenger-Mutant 6609 | -9/Exiles | Met EX-BIN 6761 | -9/Exiles | Met EX-DEC 6807 | -9/Exiles | Visited The Gauntlet 6992 | -9/Exiles | Learned location of Zion (-6) 7392 | -9/Exiles | Discovered new exit (range 11) 7493 | -9/Exiles | Entered Mines 7500 | -8/Mines | Found DCF Scrap (11 items) 7524 | -8/Mines | Discovered new exit (range 9) 7711 | -8/Mines | Discovered new exit (range 10) 8440 | -8/Mines | Entered Materials 8440 | -8/Materials | Evolved 2 slots: Propulsion x1, Utility x1 8476 | -8/Materials | Identified exit to Storage 9214 | -8/Materials | Garrison activated, responded to threat 9372 | -8/Materials | Discovered new exit (range 4) 9836 | -8/Materials | Repaired Broken Imp. Flight Unit 10922 | -8/Materials | Discovered new exit (range 7) 11027 | -8/Materials | Entered Storage 11831 | -8/Storage | Build established: Mutant 12087 | -8/Storage | Learned location of Armory (-4) 12333 | -8/Storage | Discovered new exit (range 10) 12585 | -8/Storage | Identified exit to Recycling 12765 | -8/Storage | Garrison activated, responded to threat 12835 | -8/Storage | Used back door to open Recycling access 12842 | -8/Storage | Entered Recycling 13121 | -8/Recycling | Scanned before Scraplab entrance 13147 | -8/Recycling | Entered Scraplab 13179 | -8/Recycling | Discovered new exit (range 2) 13181 | -8/Recycling | Entered Scraptown 13204 | -8/Scraptown | Heard Great Nut preacher, LISTEN AND RECITE! 13637 | -8/Scraptown | Discovered new exit (range 7) 13800 | -8/Scraptown | Visited Assassins FH 13838 | -8/Scraptown | Visited Cave Peace 13884 | -8/Scraptown | Visited The Evicted 13928 | -8/Scraptown | Visited Comm Corps 14436 | -8/Scraptown | Visited Cyclists 14507 | -8/Scraptown | Visited UFD Registry 14507 | -8/Scraptown | Registered with UFD as "Deathslider" 14630 | -8/Scraptown | Entered Cyclist Reading Room 14756 | -8/Scraptown | Visited LU-1G1's Boring Crew 14863 | -8/Scraptown | Visited A0-MCA Data Center 14873 | -8/Scraptown | Given a B+ rating by A0-MCA 14887 | -8/Scraptown | Found A0-MCA's Component Scanner 14958 | -8/Scraptown | Discovered new exit (range 5) 15102 | -8/Scraptown | Visited Cartography Club 15153 | -8/Scraptown | Visited Abandonware Association 15172 | -8/Scraptown | Learned abandonware demo "KABOOM.EXE" 15172 | -8/Scraptown | Learned abandonware demo "POISON.EXE" 15255 | -8/Scraptown | Met Optimus 15255 | -8/Scraptown | Accepted into 0bPrime 15411 | -8/Scraptown | Civil war broke out across Scraptown 15433 | -8/Scraptown | Found Deep Structural Scanner 15452 | -8/Scraptown | Learned location of Storage (-8) 15452 | -8/Scraptown | Learned location of Upper Caves (-4) 15452 | -8/Scraptown | Learned location of Warlord (-4) 15452 | -8/Scraptown | Learned 20 Factory zone layouts 15452 | -8/Scraptown | Learned 12 Research zone layouts 15452 | -8/Scraptown | Learned 16 Research zone layouts 15452 | -8/Scraptown | Learned 8 Upper Caves zone layouts 15452 | -8/Scraptown | Learned 4 Armory zone layouts 15452 | -8/Scraptown | Learned Materials emergency access door positions 15452 | -8/Scraptown | Learned location of 2 exits from Factory 15452 | -8/Scraptown | Learned location of 2 exits from Upper Caves 15468 | -8/Scraptown | Found Surveybot 17 Chip 15479 | -8/Scraptown | Core integrity fell below 50% 15492 | -8/Scraptown | Lost 6 allies 15534 | -8/Scraptown | Visited Research Penetration Think Tank 15590 | -8/Scraptown | Found Prototype Processor 15628 | -8/Scraptown | Lost 3 allies 15702 | -8/Scraptown | Found Prototype Special Weapon 15702 | -8/Scraptown | Identified LU-1G1's Laser Shovel 16055 | -8/Scraptown | Visited Junk Repository 16078 | -8/Scraptown | Visited Infowarlord's Domain 16087 | -8/Scraptown | Found Exp. Signal Interpreter 16094 | -8/Scraptown | Optimus destroyed in the chaos of civil war 16117 | -8/Scraptown | Visited Scrapoid Pod Storage 16361 | -8/Scraptown | Visited Junk Repository 16531 | -8/Scraptown | Entered Factory 16531 | -6/Factory | Evolved 4 slots: Utility x4 16532 | -6/Factory | Identified exit to Lower Caves 16533 | -6/Factory | Identified exit to Factory 16543 | -6/Factory | Identified Expert System 16648 | -6/Factory | Tech Extrapolator generated special schematic: Deep Structural Scanner 16667 | -6/Factory | Discovered exit to Factory (range 20) 16855 | -6/Factory | Build established: Scavenger-Scout 17320 | -6/Factory | Assembled infested ambush trap array 17510 | -6/Factory | Entered another Factory area 17510 | -5/Factory | Evolved 2 slots: Propulsion x1, Utility x1 17511 | -5/Factory | Identified exit to Upper Caves 17740 | -5/Factory | Entered Upper Caves 17741 | -5/Upper Caves | Identified exit to Upper Caves 17801 | -5/Upper Caves | Learned Factory terminal intel 17893 | -5/Upper Caves | Entered another Upper Caves area 17894 | -5/Upper Caves | Identified exit to Factory 17913 | -5/Upper Caves | Learned Factory emergency access door positions 17980 | -5/Upper Caves | Build established: Hacker-Scout 17994 | -5/Upper Caves | Discovered new exit (range 17) 17998 | -5/Upper Caves | Identified exit to Zhirov 17998 | -5/Upper Caves | Entered Zhirov 17998 | -5/Zhirov | Discovered new exit (range 3) 18003 | -5/Zhirov | Met Zhirov 18009 | -5/Zhirov | Learned location of Quarantine (-2) 18009 | -5/Zhirov | Learned location of Testing (-3) 18009 | -5/Zhirov | Learned location of Command (-1) 18016 | -5/Zhirov | Zhirov requested help retrieving the SGEMP Prototype 18068 | -5/Zhirov | Found Alien Artifact 18068 | -5/Zhirov | Identified Integrated Reactor 18068 | -5/Zhirov | Installed Integrated Reactor, increased core energy generation (+10) 18090 | -5/Zhirov | Identified exit to Proximity Caves 18091 | -5/Zhirov | Entered Proximity Caves 18113 | -4/Proximity Caves | Learned Research stockpile data 18447 | -4/Proximity Caves | Dug into a huge 0b10 base via an incomplete storage room 18554 | -4/Proximity Caves | Discovered exit to Factory (range 8) 18556 | -4/Proximity Caves | Entered Factory 18556 | -4/Factory | Evolved 2 slots: Utility x2 18558 | -4/Factory | Loaded intel: 28 terminal locations 18595 | -4/Factory | Repaired Imp. VTOL Module 18641 | -4/Factory | Imp. Hacking Suite fried by hacking feedback 18836 | -4/Factory | Discovered new exit (range 14) 18839 | -4/Factory | Identified exit to Upper Caves 18849 | -4/Factory | Spotted B-86 Titan 19017 | -4/Factory | Identified exit to Extension 19017 | -4/Factory | Identified exit to Armory 19038 | -4/Factory | Mak. Hacking Suite fried by hacking feedback 19059 | -4/Factory | Build established: Hacker-Ninja 19516 | -4/Factory | Entered Upper Caves 19563 | -4/Upper Caves | Encountered a Warlord checkpoint 19565 | -4/Upper Caves | Spotted B-86 Titan 19609 | -4/Upper Caves | Attracted the attention of an 0b10 outpost 19655 | -4/Upper Caves | Discovered new exit (range 11) 19657 | -4/Upper Caves | Identified exit to Upper Caves 19657 | -4/Upper Caves | Entered another Upper Caves area 19683 | -4/Upper Caves | Learned Research terminal intel 19697 | -4/Upper Caves | Found Alien Artifact 19697 | -4/Upper Caves | Identified Core Expander 19697 | -4/Upper Caves | Installed Core Expander, added new Weapon slot 19762 | -4/Upper Caves | Discovered new exit (range 15) 19766 | -4/Upper Caves | Identified exit to Warlord 19766 | -4/Upper Caves | Entered Warlord 19817 | -4/Warlord | Received a Watcher feed algorithm from an ecstatic Tinkerer 19824 | -4/Warlord | Build established: Hacker-Scout 19828 | -4/Warlord | Found Prototype Device 19828 | -4/Warlord | Identified Minesniffer Drone Bay 19896 | -4/Warlord | Rebuked by Warlord 19909 | -4/Warlord | Visited the Vortex Lab 19912 | -4/Warlord | Warlord's base attacked by MAIN.C 20176 | -4/Warlord | Attacked by Warlord forces 20191 | -4/Warlord | Found Exp. Cloaking Device 20199 | -4/Warlord | Lost 3 allies 20254 | -4/Warlord | Spotted Executioner 20262 | -4/Warlord | Warlord forces counterattacked 20264 | -4/Warlord | Spotted Executioner 20266 | -4/Warlord | Discovered new exit (range 9) 20268 | -4/Warlord | Identified exit to Proximity Caves 20268 | -4/Warlord | Entered Proximity Caves 20291 | -3/Proximity Caves | Found Alien Artifact 20490 | -3/Proximity Caves | Discovered new exit (range 22) 20565 | -3/Proximity Caves | Received a Behemoth hack from an annoying Tinkerer 20573 | -3/Proximity Caves | Identified exit to Research 20613 | -3/Proximity Caves | Entered Research 20613 | -3/Research | Evolved 2 slots: Utility x2 20614 | -3/Research | Identified exit to Testing 20617 | -3/Research | Loaded intel: 22 terminal locations 20704 | -3/Research | Fabricated Adv. Hacking Suite (x1) 20795 | -3/Research | Discovered exit to Testing (range 23) 20811 | -3/Research | Entered Testing 20811 | -3/Testing | Accompanied by 1 ally 21008 | -3/Testing | Spotted Striker 21042 | -3/Testing | Discovered new exit (range 20) 21061 | -3/Testing | Identified exit to Research 21125 | -3/Testing | Build established: Hacker-Ninja 21125 | -3/Testing | Entered Research 21125 | -2/Research | Accompanied by 1 ally 21125 | -2/Research | Evolved 2 slots: Utility x2 21126 | -2/Research | Identified exit to Quarantine 21268 | -2/Research | Identified Dimensional Node Initializer 21291 | -2/Research | Spotted B-90 Cyclops 21530 | -2/Research | Build established: Wizard-Ninja 21559 | -2/Research | Spotted B-90 Cyclops 21615 | -2/Research | Repaired Mni. Grenade Launcher+ 21908 | -2/Research | Discovered new exit (range 13) 21941 | -2/Research | P-80 Master assimilated allied Director 9b 21996 | -2/Research | Entered Quarantine 22018 | -2/Quarantine | Ran a Watcher feed algorithm 22223 | -2/Quarantine | Discovered new exit (range 24) 22244 | -2/Quarantine | Found Alien Artifact 22249 | -2/Quarantine | Spotted Fortress 22263 | -2/Quarantine | Discovered new exit (range 14) 22264 | -2/Quarantine | Discovered new exit (range 6) 22265 | -2/Quarantine | Identified exit to Protoforge 22265 | -2/Quarantine | Identified exit to Section 7 22266 | -2/Quarantine | Entered Protoforge 22324 | -2/Protoforge | Repaired Flail? 22329 | -2/Protoforge | Spotted Hotshot 22332 | -2/Protoforge | Spotted Hotshot 22396 | -2/Protoforge | Discovered new exit (range 5) 22396 | -2/Protoforge | Identified exit to Access 22451 | -2/Protoforge | Spotted B-90 Cyclops 22498 | -2/Protoforge | Superfortress began startup sequence 22504 | -2/Protoforge | Spotted AP7-3 22589 | -2/Protoforge | Found Cep. Chromion Battery 22632 | -2/Protoforge | Entered Access 22632 | -1/Access | Evolved 2 slots: Utility x2 22633 | -1/Access | Identified Core Reset Matrix 22633 | -1/Access | Used Core Reset Matrix 22683 | -1/Access | Spotted B-99 Colossus 22872 | -1/Access | Build established: Hacker-Ninja 23027 | -1/Access | Discovered new exit (range 21) 23085 | -1/Access | Lost 10 parts (1p4n5u) 23219 | -1/Access | Identified exit to Command 23224 | -1/Access | Lost 3 parts (1n2u) 23229 | -1/Access | Entered Command 23437 | -1/Command | Disengaged cave seal 23437 | -1/Command | Assembled emerged from the dark tunnel 23513 | -1/Command | Spotted B-99 Colossus 23570 | -1/Command | Lost 4 allies 23611 | -1/Command | Phase Generator disabled 23729 | -1/Command | First assault squad dispatched 23911 | -1/Command | Lost 9 allies 24328 | -1/Command | Build established: Alien-Gunner 24407 | -1/Command | Core integrity fell below 50% 24409 | -1/Command | System corruption reached 10% 24448 | -1/Command | Destroyed 9 combat bots 24459 | -1/Command | Emitted hypermatrix ping 24464 | -1/Command | Assembled emerged from beneath the floor 24491 | -1/Command | Lost 18 parts (1p4n8u5w) 24525 | -1/Command | Lost 7 allies 24622 | -1/Command | Assembled emerged from beneath the floor 24632 | -1/Command | Core integrity fell below 20% 24634 | -1/Command | Assembled emerged from beneath the floor 24665 | -1/Command | Spotted Striker 24665 | -1/Command | Spotted Alpha 7 24665 | -1/Command | Spotted Executioner 24665 | -1/Command | Spotted Executioner 24668 | -1/Command | Spotted Alpha 7 24672 | -1/Command | Spotted Striker 24672 | -1/Command | Spotted Executioner 24672 | -1/Command | Spotted Executioner 24672 | -1/Command | Spotted B-99 Colossus 24676 | -1/Command | Destroyed by Striker with Compact Linear Accelerator Last Messages --------------- 24666_ Component scanned: Exp. Core Analyzer [Executioner]. 24666_ Component scanned: Adv. Kinecellerator [Executioner]. 24666_ Component scanned: Imp. Armor Integrity Analyzer [Executioner]. 24666_ Component scanned: Helical Railgun [Executioner]. 24668_ Connecting with Cave Seal Controls... 24670_ Slug penetrates Wall. 24672_ Cld. Impulse Thruster blasted off. 24672_ Knocked back. 24673_ Slug penetrates as-68331. 24673_ as-68331 destroyed. 24673_ Slug penetrates as-28695. 24673_ as-28695 destroyed. 24674_ Wall collapses. 24675_ Slug penetrates Wall. 24675_ Penetrated by Slug. 24675_ Slug penetrates Wall. Map ----- +----------------------------------------------------+ | | | | | | | | | ?????????????????????????????????????????????????? | | ?????????????????????????????????????????????????? | | ?????????????????????????????????????????????????? | | ?????????????????????????????????????????????????? | | ?????????????????????????????????????????????????? | | ?????????????????????????????????????????????????? | | ?????????????????????????????????????????????????? | | ????????????????##########???????????????????????? | | ????????????????# #???????????????????????? | | ????????????????# """ #???????????????????????? | | ????????????????# T""" #???????????????????????? | | ???#????????????# """" #???????????????????????? | | ???# ???????????# """ #???????????????????????? | | ???# ???????????# #???????????????????????? | | ???# ??????????# #???????????????? ????? | | ???# ??????????# #??###?#?#?#?? ????? | | ???# ??????????# ###; # # # # ???? | | ???# ################+#;#; K EE "????????? | | ???# K % =/ "????????? | | ???# 77/ ^ "????????? | | ???# /E E "????????? | | ???# @/ BB "????????? | | ???# % ## BB "????????? | | ???# ! % #?## # # # # ???? | | ???# % m #???##?#?#?#?? ????? | | ???# ### ;#;#;##### #??????????????? ????? | | ???# ###+########## k ##??????????????????????? | | #### # "" # #???????????????????????? | | # """" # #????##?????????????????? | | # """" # ?? ?????????????????? | | ? # "" # ???????????????????? | | ?? # # ????????????????????? | | ???# # # ??????????????????? | | ???# # # #####??????????????????? | | ???# + # #??????????????????????? | | ???# # # #??????????????????????? | | ??## ############## #??????????????????????? | | ??# ############# #?????????????????????? | | ??# " #?????????????????????? | | ??# "T % +?????????????????????? | | ??# ######## #######+#/??????????????????????? | | ?###+#######??# #???????? #?????????????????????? | | ?# #??# #???????? #?????????????????????? | | ?# #??# #???????? #????????????????? #??? | | ?# #### ###?????? ?????????? "??? #??? | | ?# "" ## #????????????????# "?? #??? | +----------------------------------------------------+ Best States ------------- Heat Dissipation 109 Energy Generation 37 Energy Capacity 1140 Matter Stores 300 Matter Capacity 300 Sight Range 22 Robot Scan Range 16 Terrain Scan Range 24 Terrain Scan Density 1210 Jamming Range 16 Cloak Strength 4 Power Amplification 40 Additional Mass Support 12 Armor Coverage 600 Core Shielding 30 Utility Shielding 66 Evasion (%) 78 Launcher Accuracy 200 Recoil Reduction 4 Offensive Hacking 42 Defensive Hacking 26 Item Schematics ----------------- None Robot Schematics ------------------ None Fabricated ------------ Adv. Hacking Suite | x1 | -3/Research Repaired ---------- Lgt. Treads | 23% | -10/Materials Imp. Terrain Scanner | 45% | -10/Materials | Broken Lgt. Cannon | 35% | -9/Materials Imp. Flight Unit | 99% | -8/Materials | Broken Imp. VTOL Module | 56% | -4/Factory Mni. Grenade Launcher | 32% | -2/Research Flail | 21% | -2/Protoforge Studied --------- Mni. Grenade Launcher | -1/Access | Hacked Alien Tech Used ----------------- Integrated Reactor Core Expander Core Reset Matrix Achievements -------------- Bob, First Of His Name Ew, Corruption Infodabbler Into The Breach Link The Feds Look Less Dangerous Next Time Resistances Are Futile Sprinter Super-what Now? Uncivil War Wiki Contributor Challenges ------------ None Game ------ Seed ShiftLobotomyMicroactuators Manual? 0 Play Time 09:47:50 Cumulative 534.0 hours Start 2025.11.02 @ 19:59:02 End 2025.11.07 @ 14:13:31 Sessions 16 Manual Loads 0 Difficulty Rogue Special Mode None Game No. 158 Rogue 119 Adventurer 0 Explorer 39 Win Type - Total 15 Types 12/1/1/1/0/0/0/0/0/0 Lore% 72 Gallery% 72 Achievement% 46 Wizard Run 0 Options --------- Layout 2 ASCII 1 Keyboard 1 Movement Arrows Keybinds 0 Fullscreen 1 Font 24/Smallcaps Map View 50x44 Zoom Use 0% Tactical HUD 1 Map Filters NONE Filters NONE Steam 1 RUN: 8b074752-8cae-401e-b526-9124815234b6